[Event "9th Amsterdam Science Park A 2019"]
[Site "Amsterdam"]
[Date "2019.07.08"]
[Round "3.9"]
[White "Mienis, Dennis"]
[Black "Dimitrijeski, Kristian"]
[Result "1/2-1/2"]
[ECO "B14"]
[WhiteElo "1993"]
[BlackElo "2186"]
[Annotator "NA"]
[PlyCount "97"]
[EventDate "2019.07.06"]
[EventType "swiss"]
[EventCountry "NED"]
[SourceTitle "playchess.com"]
[Source "ChessBase"]
[SourceQuality "1"]
[TimeControl "40/5400+30:1800+30"]

1. c4 {[%emt 0:26:03]} c6 {[%emt 0:00:00]} 2. e4 {[%emt 0:00:09]} d5 {[%emt 0:00:00]} 3. exd5 {[%emt 0:00:09]} cxd5 {[%emt 0:00:00]} 4. d4 {[%emt 0:00:04]} Nf6 {[%emt 0:00:53]} 5. Nc3 {[%emt 0:00:12]} g6 {[%emt 0:01:23]} 6. Nf3 {[%emt 0:01:52]} Bg7 {[%emt 0:00:59]} 7. Be2 {[%emt 0:03:10]} dxc4 {[%emt 0:02:16]} 8. Bxc4 {[%emt 0:00:15]} O-O {[%emt 0:00:26]} 9. O-O {[%emt 0:00:09]} Bg4 {[%emt 0:09:31]} 10. d5 {[%emt 0:13:45]} Nbd7 {[%emt 0:02:50]} 11. h3 {[%emt 0:03:13]} Bxf3 {[%emt 0:01:29]} 12. Qxf3 {[%emt 0:00:08]} Ne5 {[%emt 0:00:10]} 13. Qe2 {[%emt 0:00:07]} Nxc4 {[%emt 0:00:11]} 14. Qxc4 {[%emt 0:00:07]} Ne8 {[%emt 0:25:52]} 15. Qb3 {[%emt 0:00:47]} Nd6 {[%emt 0:00:42]} 16. Re1 {[%emt 0:00:27]} Re8 {[%emt 0:01:07]} 17. Bf4 {[%emt 0:00:54]} b6 {[%emt 0:02:15]} 18. Rad1 {[%emt 0:05:56]} Rc8 {[%emt 0:01:40]} 19. Ne4 {[%emt 0:07:59]} Nxe4 {[%emt 0:01:20]} 20. Rxe4 {[%emt 0:00:12]} Qd7 {[%emt 0:08:58]} 21. Rde1 {[%emt 0:12:42]} Rc5 {[%emt 0:05:36]} 22. Be5 {[%emt 0:03:55]} Rxd5 {[%emt 0:04:45]} 23. Bxg7 {[%emt 0:00:48]} Kxg7 {[%emt 0:00:07]} 24. Rxe7 {[%emt 0:02:58]} Rxe7 {[%emt 0:00:19]} 25. Rxe7 {[%emt 0:00:08]} Qxe7 {[%emt 0:03:09]} 26. Qxd5 {[%emt 0:00:18]} Qe1+ {[%emt 0:00:07]} 27. Kh2 {[%emt 0:00:23]} Qxf2 {[%emt 0:00:06]} 28. Qe5+ {[%emt 0:02:03]} Qf6 {[%emt 0:00:27]} 29. Qe2 {[%emt 0:00:04]} h5 {[%emt 0:03:41]} 30. b3 {[%emt 0:01:18]} a5 {[%emt 0:04:45]} 31. a4 {[%emt 0:04:22]} Qf4+ {[%emt 0:00:52]} 32. Kh1 {[%emt 0:00:36]} Qd4 {[%emt 0:00:49]} 33. Qb5 {[%emt 0:01:52]} Kh6 {[%emt 0:03:45]} 34. Qf1 {[%emt 0:01:47]} f5 {[%emt 0:00:38]} 35. Qc1+ {[%emt 0:00:19]} f4 {[%emt 0:00:55]} 36. Qf1 {[%emt 0:01:42]} Qe3 {[%emt 0:03:52]} 37. Qd1 {[%emt 0:00:16]} Qe4 {[%emt 0:04:15]} 38. Kh2 {[%emt 0:01:53]} Qe5 {[%emt 0:01:47]} 39. Kh1 {[%emt 0:00:40]} Qc3 {[%emt 0:03:16]} 40. Qd5 {[%emt 0:00:46]} Qe1+ {[%emt 0:01:00]} 41. Kh2 {[%emt 0:31:14]} Qg3+ {[%emt 0:31:26]} 42. Kh1 {[%emt 0:00:08]} f3 {[%emt 0:00:00]} 43. gxf3 {[%emt 0:00:00]} Qxh3+ {[%emt 0:00:00]} 44. Kg1 {[%emt 0:00:00]} Qf5 {[%emt 0:00:00]} 45. Qxf5 {[%emt 0:00:00]} gxf5 {[%emt 0:00:00]} 46. f4 {[%emt 0:00:00]} Kg6 {[%emt 0:00:00]} 47. Kg2 {[%emt 0:00:00]} h4 {[%emt 0:00:00]} 48. Kh2 {[%emt 0:00:00]} Kh6 {[%emt 0:00:00]} 49. Kg2 1/2-1/2

[Event "9th Amsterdam Science Park A 2019"]
[Site "Amsterdam"]
[Date "2019.07.08"]
[Round "3.10"]
[White "De Rover, Yong Hoon"]
[Black "Kohler, Aran"]
[Result "1-0"]
[ECO "B90"]
[WhiteElo "2391"]
[BlackElo "2176"]
[Annotator "NA"]
[PlyCount "122"]
[EventDate "2019.07.06"]
[EventType "swiss"]
[EventCountry "NED"]
[SourceTitle "playchess.com"]
[Source "ChessBase"]
[SourceQuality "1"]
[TimeControl "40/5400+30:1800+30"]

1. e4 {[%emt 0:00:00]} c5 {[%emt 0:02:32]} 2. Nf3 {[%emt 0:00:05]} d6 {[%emt 0:00:04]} 3. d4 {[%emt 0:00:09]} cxd4 {[%emt 0:00:05]} 4. Nxd4 {[%emt 0:00:08]} Nf6 {[%emt 0:00:03]} 5. Nc3 {[%emt 0:00:10]} a6 {[%emt 0:00:04]} 6. f3 {[%emt 0:00:10]} e5 {[%emt 0:02:24]} 7. Nb3 {[%emt 0:00:08]} Be6 {[%emt 0:00:19]} 8. Be3 {[%emt 0:00:08]} Nbd7 {[%emt 0:00:59]} 9. g4 {[%emt 0:00:19]} Rc8 {[%emt 0:02:07]} 10. Qd2 {[%emt 0:01:23]} Be7 {[%emt 0:06:09]} 11. O-O-O {[%emt 0:00:40]} O-O {[%emt 0:01:27]} 12. Kb1 {[%emt 0:00:34]} Nb6 {[%emt 0:06:02]} 13. h4 {[%emt 0:02:41]} Qc7 {[%emt 0:04:08]} 14. h5 {[%emt 0:03:34]} d5 {[%emt 0:09:29]} 15. Bxb6 {[%emt 0:15:25]} Qxb6 {[%emt 0:00:17]} 16. g5 {[%emt 0:00:31]} Rxc3 {[%emt 0:12:47]} 17. Qxc3 {[%emt 0:00:59]} Bb4 {[%emt 0:01:53]} 18. Qxe5 {[%emt 0:00:58]} Nd7 {[%emt 0:02:25]} 19. Qd4 {[%emt 0:00:46]} dxe4 {[%emt 0:00:11]} 20. Qxb6 {[%emt 0:01:26]} Nxb6 {[%emt 0:00:05]} 21. fxe4 {[%emt 0:00:09]} Bg4 {[%emt 0:00:29]} 22. Rd4 {[%emt 0:02:27]} Be7 {[%emt 0:00:24]} 23. a4 {[%emt 0:04:38]} Bf3 {[%emt 0:03:05]} 24. Rh3 {[%emt 0:01:57]} Bg4 {[%emt 0:00:07]} 25. Rh2 {[%emt 0:00:37]} Be6 {[%emt 0:03:45]} 26. Rg2 {[%emt 0:02:57]} Bh3 {[%emt 0:02:01]} 27. Rg1 {[%emt 0:00:08]} Be6 {[%emt 0:00:18]} 28. a5 {[%emt 0:00:28]} Bxb3 {[%emt 0:00:18]} 29. Rg3 {[%emt 0:03:28]} Be6 {[%emt 0:00:16]} 30. axb6 {[%emt 0:00:20]} Bc5 {[%emt 0:00:03]} 31. Rd1 {[%emt 0:01:30]} Bxb6 {[%emt 0:00:05]} 32. Bh3 {[%emt 0:00:59]} Bc7 {[%emt 0:01:02]} 33. Rgd3 {[%emt 0:00:39]} Bc4 {[%emt 0:01:30]} 34. Rd7 {[%emt 0:00:51]} Bf4 {[%emt 0:00:21]} 35. g6 {[%emt 0:00:31]} fxg6 {[%emt 0:03:59]} 36. hxg6 {[%emt 0:00:32]} hxg6 {[%emt 0:00:10]} 37. b3 {[%emt 0:00:39]} Be2 {[%emt 0:00:26]} 38. Re1 {[%emt 0:10:14]} Bf3 {[%emt 0:07:46]} 39. Rf1 {[%emt 0:06:07]} Be2 {[%emt 0:09:17]} 40. Rf2 {[%emt 0:00:47]} Bb5 {[%emt 0:00:14]} 41. Rxb7 {[%emt 0:31:11]} g5 {[%emt 0:30:09]} 42. Be6+ {[%emt 0:25:27]} Kh7 {[%emt 0:00:27]} 43. Bf5+ {[%emt 0:00:20]} Kg8 {[%emt 0:05:57]} 44. c4 {[%emt 0:01:19]} Bc6 {[%emt 0:05:36]} 45. Rb6 {[%emt 0:00:48]} Rf6 {[%emt 0:00:19]} 46. Ka2 {[%emt 0:01:06]} Be3 {[%emt 0:00:57]} 47. Rb8+ {[%emt 0:03:55]} Kf7 {[%emt 0:00:24]} 48. Re2 {[%emt 0:00:19]} Ba7 {[%emt 0:03:34]} 49. Rc8 {[%emt 0:00:57]} Bc5 {[%emt 0:03:37]} 50. Rc7+ {[%emt 0:03:08]} Be7 {[%emt 0:00:52]} 51. Bg4 {[%emt 0:02:52]} Be8 {[%emt 0:01:30]} 52. e5 {[%emt 0:00:33]} Rf4 {[%emt 0:00:06]} 53. Bh5+ {[%emt 0:00:24]} g6 {[%emt 0:01:44]} 54. Bxg6+ {[%emt 0:00:10]} Kxg6 {[%emt 0:00:04]} 55. Rxe7 {[%emt 0:00:08]} Rf8 {[%emt 0:00:08]} 56. Re6+ {[%emt 0:01:33]} Kh5 {[%emt 0:00:03]} 57. Rh2+ {[%emt 0:02:13]} Kg4 {[%emt 0:00:07]} 58. Rf6 {[%emt 0:00:15]} Rg8 {[%emt 0:00:19]} 59. e6 {[%emt 0:00:33]} Kg3 {[%emt 0:00:06]} 60. Rh7 {[%emt 0:01:04]} Bc6 {[%emt 0:00:31]} 61. e7 {[%emt 0:00:14]} Re8 {[%emt 0:00:15]} 1-0

[Event "9th Amsterdam Science Park A 2019"]
[Site "Amsterdam"]
[Date "2019.07.08"]
[Round "3.11"]
[White "De Ruiter, Danny"]
[Black "Vroombout, Enrico"]
[Result "1-0"]
[ECO "E97"]
[WhiteElo "2310"]
[BlackElo "2141"]
[Annotator "NA"]
[PlyCount "95"]
[EventDate "2019.07.06"]
[EventType "swiss"]
[EventCountry "NED"]
[SourceTitle "playchess.com"]
[Source "ChessBase"]
[SourceQuality "1"]
[TimeControl "40/5400+30:1800+30"]

1. d4 {[%emt 0:00:00]} Nf6 {[%emt 0:00:00]} 2. Nf3 {[%emt 0:00:00]} g6 {[%emt 0:00:00]} 3. c4 {[%emt 0:00:00]} Bg7 4. Nc3 {[%emt 0:00:00]} O-O {[%emt 0:00:00]} 5. e4 {[%emt 0:00:04]} d6 {[%emt 0:00:00]} 6. Be2 {[%emt 0:00:07]} e5 {[%emt 0:00:16]} 7. O-O {[%emt 0:00:12]} Nc6 {[%emt 0:00:04]} 8. d5 {[%emt 0:00:11]} Ne7 {[%emt 0:00:03]} 9. b4 {[%emt 0:00:05]} Nh5 {[%emt 0:00:10]} 10. Re1 {[%emt 0:00:05]} f5 {[%emt 0:00:07]} 11. Ng5 {[%emt 0:00:07]} Nf6 {[%emt 0:00:04]} 12. f3 {[%emt 0:00:06]} Kh8 {[%emt 0:00:15]} 13. Rb1 {[%emt 0:00:24]} h6 {[%emt 0:10:05]} 14. Ne6 {[%emt 0:00:28]} Bxe6 {[%emt 0:00:04]} 15. dxe6 {[%emt 0:00:05]} fxe4 {[%emt 0:15:27]} 16. fxe4 {[%emt 0:02:04]} Nc6 {[%emt 0:00:04]} 17. Qd3 {[%emt 0:07:21]} Nd4 {[%emt 0:14:11]} 18. Qh3 {[%emt 0:01:42]} Kh7 {[%emt 0:13:11]} 19. Nd5 {[%emt 0:05:19]} Qc8 {[%emt 0:03:31]} 20. e7 {[%emt 0:05:40]} Rf7 {[%emt 0:03:56]} 21. Nxf6+ {[%emt 0:01:03]} Rxf6 {[%emt 0:00:07]} 22. Bg4 {[%emt 0:00:04]} Qe8 {[%emt 0:07:31]} 23. Bg5 {[%emt 0:02:30]} Qxe7 {[%emt 0:00:19]} 24. Bxf6 {[%emt 0:00:08]} Bxf6 {[%emt 0:01:40]} 25. Rf1 {[%emt 0:04:21]} Bh4 {[%emt 0:04:02]} 26. Kh1 {[%emt 0:04:35]} Kg7 {[%emt 0:01:06]} 27. Bc8 {[%emt 0:07:38]} Rb8 {[%emt 0:00:28]} 28. Rb2 {[%emt 0:00:59]} Qd8 {[%emt 0:07:08]} 29. Be6 {[%emt 0:08:14]} Nxe6 {[%emt 0:00:30]} 30. Qxe6 {[%emt 0:00:14]} Qe8 {[%emt 0:00:02]} 31. Qxe8 {[%emt 0:05:03]} Rxe8 {[%emt 0:00:08]} 32. Rb3 {[%emt 0:00:02]} Bf6 {[%emt 0:09:19]} 33. Rbf3 {[%emt 0:00:34]} Rf8 {[%emt 0:00:05]} 34. h4 {[%emt 0:04:33]} Rf7 {[%emt 0:04:11]} 35. g4 {[%emt 0:01:38]} Rf8 {[%emt 0:00:59]} 36. Kg2 {[%emt 0:01:20]} a6 {[%emt 0:04:28]} 37. Kg3 {[%emt 0:02:35]} Be7 {[%emt 0:00:29]} 38. Rxf8 {[%emt 0:00:08]} Bxf8 {[%emt 0:00:03]} 39. b5 {[%emt 0:00:47]} axb5 {[%emt 0:01:56]} 40. cxb5 {[%emt 0:03:42]} Be7 {[%emt 0:00:05]} 41. b6 {[%emt 0:32:00]} c6 {[%emt 0:08:35]} 42. a4 {[%emt 0:00:00]} d5 {[%emt 0:00:04]} 43. exd5 {[%emt 0:00:00]} cxd5 {[%emt 0:02:18]} 44. Rd1 {[%emt 0:00:00]} d4 {[%emt 0:00:40]} 45. Kf3 {[%emt 0:00:00]} Bxh4 {[%emt 0:08:19]} 46. Ke4 {[%emt 0:00:00]} Bd8 {[%emt 0:02:24]} 47. a5 {[%emt 0:00:00]} Kf6 {[%emt 0:00:17]} 48. a6 {[%emt 0:00:00]} 1-0

[Event "9th Amsterdam Science Park A 2019"]
[Site "Amsterdam"]
[Date "2019.07.08"]
[Round "3.12"]
[White "Van der Velde, Henk"]
[Black "Wunnink, Michael"]
[Result "0-1"]
[ECO "A14"]
[WhiteElo "2135"]
[BlackElo "2214"]
[Annotator "NA"]
[PlyCount "88"]
[EventDate "2019.07.06"]
[EventType "swiss"]
[EventCountry "NED"]
[SourceTitle "playchess.com"]
[Source "ChessBase"]
[SourceQuality "1"]
[TimeControl "40/5400+30:1800+30"]

1. c4 {[%emt 0:00:00]} e6 {[%emt 0:00:00]} 2. g3 {[%emt 0:00:00]} Nf6 {[%emt 0:00:16]} 3. Bg2 {[%emt 0:00:00]} d5 {[%emt 0:00:19]} 4. Nf3 Be7 {[%emt 0:00:50]} 5. O-O {[%emt 0:00:27]} O-O {[%emt 0:00:23]} 6. b3 {[%emt 0:00:10]} b6 {[%emt 0:00:47]} 7. Bb2 {[%emt 0:00:26]} c5 {[%emt 0:00:34]} 8. e3 Ba6 {[%emt 0:03:57]} 9. Qe2 {[%emt 0:02:08]} Nc6 {[%emt 0:01:32]} 10. Nc3 {[%emt 0:06:09]} Rc8 {[%emt 0:11:56]} 11. d3 {[%emt 0:17:05]} Qd7 {[%emt 0:03:04]} 12. Rad1 {[%emt 0:10:47]} Rfd8 {[%emt 0:22:25]} 13. Nb5 {[%emt 0:09:14]} Qe8 {[%emt 0:05:09]} 14. e4 {[%emt 0:08:26]} d4 {[%emt 0:00:46]} 15. e5 {[%emt 0:04:57]} Nd7 {[%emt 0:03:00]} 16. Rfe1 Bb7 {[%emt 0:00:17]} 17. Bc1 {[%emt 0:06:27]} a6 18. Na3 h6 {[%emt 0:10:03]} 19. h4 {[%emt 0:01:16]} Bf8 {[%emt 0:00:39]} 20. Bf4 {[%emt 0:02:31]} Ne7 {[%emt 0:02:01]} 21. h5 {[%emt 0:05:26]} b5 {[%emt 0:06:39]} 22. Nb1 {[%emt 0:05:36]} bxc4 {[%emt 0:00:29]} 23. bxc4 {[%emt 0:00:02]} Nb6 {[%emt 0:01:31]} 24. g4 {[%emt 0:02:52]} Rb8 {[%emt 0:01:25]} 25. Nfd2 {[%emt 0:01:55]} Bxg2 {[%emt 0:00:46]} 26. Kxg2 {[%emt 0:00:03]} Na4 {[%emt 0:01:16]} 27. Ne4 {[%emt 0:02:30]} Qc6 {[%emt 0:04:20]} 28. Kh3 {[%emt 0:02:01]} Rb2 {[%emt 0:01:06]} 29. Qf3 {[%emt 0:00:11]} Kh8 {[%emt 0:02:29]} 30. Rg1 {[%emt 0:04:08]} Nc3 {[%emt 0:01:33]} 31. Nbxc3 {[%emt 0:00:39]} dxc3 {[%emt 0:00:07]} 32. g5 {[%emt 0:04:29]} c2 {[%emt 0:03:43]} 33. Rc1 Qd7 34. Nd6 {[%emt 0:03:22]} Nf5 {[%emt 0:01:56]} 35. Nxf5 {[%emt 0:01:02]} exf5 {[%emt 0:00:10]} 36. gxh6 Qxd3 {[%emt 0:03:22]} 37. Be3 {[%emt 0:01:56]} Qxc4 {[%emt 0:01:11]} 38. hxg7+ {[%emt 0:00:45]} Bxg7 {[%emt 0:00:06]} 39. Rxg7 {[%emt 0:00:55]} Kxg7 {[%emt 0:02:43]} 40. Rg1+ Kh8 41. Qc6 {[%emt 0:11:43]} Qe6 {[%emt 0:02:22]} 42. Qg2 {[%emt 0:02:50]} f4+ 43. Kh4 Qe7+ {[%emt 0:11:49]} 44. Kh3 {[%emt 0:00:52]} Qxe5 {[%emt 0:00:13]} 0-1

[Event "9th Amsterdam Science Park A 2019"]
[Site "Amsterdam"]
[Date "2019.07.09"]
[Round "4.1"]
[White "Belous, Mikhail"]
[Black "Meshkovs, Nikita"]
[Result "1/2-1/2"]
[ECO "A64"]
[WhiteElo "2289"]
[BlackElo "2550"]
[Annotator "ChessBase"]
[PlyCount "105"]
[EventDate "2019.07.06"]
[EventType "swiss"]
[EventCountry "NED"]
[SourceTitle "playchess.com"]
[Source "ChessBase"]
[SourceQuality "1"]
[TimeControl "40/5400+30:1800+30"]

1. d4 {[%emt 0:00:00]} Nf6 {[%emt 0:02:35]} 2. c4 {[%emt 0:00:00]} c5 {[%emt 0:00:08]} 3. d5 {[%emt 0:00:00]} e6 {[%emt 0:00:06]} 4. Nc3 {[%emt 0:00:00]} exd5 {[%emt 0:00:06]} 5. cxd5 {[%emt 0:00:02]} g6 {[%emt 0:00:11]} 6. Nf3 {[%emt 0:00:22]} d6 {[%emt 0:00:11]} 7. g3 {[%emt 0:00:20]} Bg7 {[%emt 0:00:42]} 8. Bg2 {[%emt 0:00:08]} O-O {[%emt 0:00:10]} 9. O-O {[%emt 0:00:10]} Re8 {[%emt 0:00:20]} 10. Nd2 {[%emt 0:00:16]} a6 {[%emt 0:00:16]} 11. a4 {[%emt 0:00:20]} Nbd7 {[%emt 0:00:08]} 12. h3 {[%emt 0:00:39]} Rb8 {[%emt 0:04:17]} 13. Nc4 {[%emt 0:01:56]} Ne5 {[%emt 0:00:12]} 14. Na3 {[%emt 0:00:18]} Nh5 {[%emt 0:00:06]} 15. e4 {[%emt 0:02:22]} Bd7 {[%emt 0:04:09]} 16. a5 {[%emt 0:01:22]} Qxa5 {[%emt 0:09:01]} 17. g4 {[%emt 0:01:05]} Nf6 {[%emt 0:05:01]} 18. g5 {[%emt 0:05:01]} Nh5 {[%emt 0:02:24]} 19. f4 {[%emt 0:00:28]} Nc4 {[%emt 0:00:54]} 20. Nxc4 {[%emt 0:00:30]} Qxa1 {[%emt 0:00:06]} 21. Nxd6 {[%emt 0:00:25]} Bxc3 {[%emt 0:01:15]} 22. bxc3 {[%emt 0:02:47]} Qxc3 {[%emt 0:00:10]} 23. Nxe8 {[%emt 0:20:00]} Rxe8 {[%emt 0:00:18]} 24. Qd2 {[%emt 0:01:19]} Qc4 {[%emt 0:22:32]} 25. Qf2 {[%emt 0:04:31]} b5 {[%emt 0:09:30]} 26. Be3 {[%emt 0:15:47]} Qd3 {[%emt 0:00:56]} 27. Ra1 {[%emt 0:07:36]} b4 {[%emt 0:04:51]} 28. Qd2 {[%emt 0:13:49]} Bb5 {[%emt 0:04:31]} 29. Kf2 {[%emt 0:07:14]} b3 {[%emt 0:01:57]} 30. Ra3 {[%emt 0:00:47]} Qxd2+ {[%emt 0:02:17]} 31. Bxd2 {[%emt 0:00:04]} c4 {[%emt 0:00:06]} 32. Ra1 {[%emt 0:01:22]} Rc8 {[%emt 0:00:40]} 33. Bc3 {[%emt 0:05:23]} Nxf4 {[%emt 0:01:22]} 34. Bf1 {[%emt 0:00:12]} Nd3+ {[%emt 0:10:26]} 35. Ke3 {[%emt 0:01:25]} Nc5 {[%emt 0:00:01]} 36. Kd4 {[%emt 0:02:05]} Na4 {[%emt 0:00:02]} 37. e5 {[%emt 0:03:41]} Re8 {[%emt 0:02:48]} 38. Re1 {[%emt 0:01:24]} b2 {[%emt 0:01:22]} 39. Rb1 {[%emt 0:02:06]} Nxc3 {[%emt 0:01:34]} 40. Kxc3 {[%emt 0:00:04]} Rxe5 {[%emt 0:00:06]} 41. Bxc4 {[%emt 0:30:17]} Bxc4 {[%emt 0:30:49]} 42. Kxc4 {[%emt 0:00:08]} Re2 {[%emt 0:00:01]} 43. Kd3 {[%emt 0:00:00]} Rg2 {[%emt 0:00:00]} 44. d6 {[%emt 0:00:00]} Kf8 {[%emt 0:00:00]} 45. Re1 {[%emt 0:00:00]} Rxg5 {[%emt 0:00:00]} 46. Kd4 {[%emt 0:00:00]} Rb5 {[%emt 0:00:00]} 47. d7 {[%emt 0:00:00]} Rb8 {[%emt 0:00:00]} 48. Kd5 {[%emt 0:00:00]} a5 {[%emt 0:00:00]} 49. Rb1 {[%emt 0:01:05]} Ke7 {[%emt 0:09:52]} 50. Kc6 {[%emt 0:00:09]} Rd8 {[%emt 0:00:47]} 51. Re1+ {[%emt 0:00:29]} Kf6 {[%emt 0:00:05]} 52. Rb1 {[%emt 0:00:46]} Ke7 {[%emt 0:00:05]} 53. Re1+ {[%emt 0:00:06]} 1/2-1/2

[Event "9th Amsterdam Science Park A 2019"]
[Site "Amsterdam"]
[Date "2019.07.09"]
[Round "4.2"]
[White "Gleizerov, Evgeny"]
[Black "Van der Lende, Ilias"]
[Result "1/2-1/2"]
[ECO "A50"]
[WhiteElo "2498"]
[BlackElo "2350"]
[Annotator "ChessBase"]
[PlyCount "72"]
[EventDate "2019.07.06"]
[EventType "swiss"]
[EventCountry "NED"]
[SourceTitle "playchess.com"]
[Source "ChessBase"]
[SourceQuality "1"]
[TimeControl "40/5400+30:1800+30"]

1. d4 {[%emt 0:01:59]} Nf6 {[%emt 0:00:00]} 2. c4 {[%emt 0:00:06]} b6 {[%emt 0:00:03]} 3. Nc3 {[%emt 0:00:22]} Bb7 {[%emt 0:00:08]} 4. d5 {[%emt 0:00:18]} e6 {[%emt 0:00:31]} 5. a3 {[%emt 0:00:05]} Bd6 {[%emt 0:20:58]} 6. Nf3 {[%emt 0:01:04]} exd5 {[%emt 0:02:12]} 7. cxd5 {[%emt 0:00:26]} O-O {[%emt 0:00:38]} 8. Bg5 {[%emt 0:06:02]} h6 {[%emt 0:04:22]} 9. Bh4 {[%emt 0:00:33]} Re8 {[%emt 0:00:15]} 10. e3 {[%emt 0:00:39]} c6 {[%emt 0:01:46]} 11. Bc4 {[%emt 0:06:25]} Na6 {[%emt 0:09:46]} 12. Nd4 {[%emt 0:13:52]} b5 {[%emt 0:03:26]} 13. Be2 {[%emt 0:06:35]} Nc7 {[%emt 0:06:53]} 14. dxc6 {[%emt 0:04:55]} dxc6 {[%emt 0:00:28]} 15. Bf3 {[%emt 0:00:09]} Ncd5 {[%emt 0:11:11]} 16. Bxd5 {[%emt 0:07:22]} cxd5 {[%emt 0:00:13]} 17. Ncxb5 {[%emt 0:00:09]} Be5 {[%emt 0:03:12]} 18. O-O {[%emt 0:05:09]} Qb6 {[%emt 0:00:20]} 19. Bxf6 {[%emt 0:02:43]} Bxf6 {[%emt 0:01:19]} 20. Nc3 {[%emt 0:00:57]} Rab8 {[%emt 0:01:19]} 21. Na4 {[%emt 0:05:35]} Qd6 {[%emt 0:02:01]} 22. Rc1 {[%emt 0:01:42]} Bc8 {[%emt 0:09:19]} 23. Qd2 {[%emt 0:01:32]} Bd7 {[%emt 0:03:50]} 24. Nc5 {[%emt 0:02:04]} Bb5 {[%emt 0:00:05]} 25. Nxb5 {[%emt 0:12:38]} Rxb5 {[%emt 0:00:12]} 26. b4 {[%emt 0:00:10]} a5 {[%emt 0:03:26]} 27. Rc2 {[%emt 0:04:35]} axb4 {[%emt 0:02:06]} 28. axb4 {[%emt 0:00:04]} Reb8 {[%emt 0:00:54]} 29. Nd3 {[%emt 0:00:11]} Be7 {[%emt 0:03:18]} 30. Rfc1 {[%emt 0:08:56]} d4 {[%emt 0:02:46]} 31. Rc8+ {[%emt 0:03:04]} Rxc8 {[%emt 0:00:28]} 32. Rxc8+ {[%emt 0:00:02]} Kh7 {[%emt 0:02:08]} 33. Qc2 {[%emt 0:03:45]} dxe3 {[%emt 0:02:27]} 34. fxe3 {[%emt 0:00:34]} Qg6 {[%emt 0:01:28]} 35. Rc6 {[%emt 0:00:09]} Qe4 {[%emt 0:01:09]} 36. Ne1 {[%emt 0:02:07]} Qg6 1/2-1/2

[Event "9th Amsterdam Science Park A 2019"]
[Site "Amsterdam"]
[Date "2019.07.09"]
[Round "4.3"]
[White "Zwirs, Nico"]
[Black "Ten Hertog, Hugo"]
[Result "1/2-1/2"]
[ECO "B80"]
[WhiteElo "2380"]
[BlackElo "2484"]
[Annotator "ChessBase"]
[PlyCount "51"]
[EventDate "2019.07.06"]
[EventType "swiss"]
[EventCountry "NED"]
[SourceTitle "playchess.com"]
[Source "ChessBase"]
[SourceQuality "1"]
[TimeControl "40/5400+30:1800+30"]

1. e4 {[%emt 0:00:00]} c5 {[%emt 0:02:45]} 2. Nf3 {[%emt 0:00:00]} e6 {[%emt 0:00:03]} 3. d4 {[%emt 0:00:04]} cxd4 {[%emt 0:00:05]} 4. Nxd4 {[%emt 0:00:05]} Nf6 {[%emt 0:00:53]} 5. Nc3 {[%emt 0:00:07]} d6 {[%emt 0:00:03]} 6. Be3 {[%emt 0:00:25]} Nc6 {[%emt 0:04:06]} 7. f3 {[%emt 0:04:05]} d5 {[%emt 0:15:04]} 8. exd5 {[%emt 0:00:17]} Nxd5 {[%emt 0:02:33]} 9. Nxd5 {[%emt 0:00:25]} exd5 {[%emt 0:16:44]} 10. Bb5 {[%emt 0:21:51]} Bd7 {[%emt 0:13:40]} 11. Qd2 {[%emt 0:01:43]} Bb4 {[%emt 0:06:42]} 12. c3 {[%emt 0:00:32]} Be7 {[%emt 0:03:26]} 13. Nb3 {[%emt 0:04:21]} a6 {[%emt 0:06:30]} 14. Be2 {[%emt 0:00:22]} Be6 {[%emt 0:03:49]} 15. Nc5 {[%emt 0:03:18]} Qc8 {[%emt 0:00:16]} 16. O-O {[%emt 0:07:29]} O-O {[%emt 0:02:23]} 17. f4 {[%emt 0:15:02]} Rd8 {[%emt 0:00:18]} 18. Nxe6 {[%emt 0:15:05]} Qxe6 {[%emt 0:00:12]} 19. Bb6 {[%emt 0:01:29]} Rd7 {[%emt 0:05:50]} 20. Bf3 {[%emt 0:05:04]} d4 {[%emt 0:04:39]} 21. f5 {[%emt 0:14:13]} Qc4 {[%emt 0:04:30]} 22. Bxd4 {[%emt 0:02:09]} Nxd4 {[%emt 0:03:59]} 23. cxd4 {[%emt 0:00:00]} Bc5 {[%emt 0:01:52]} 24. Kh1 {[%emt 0:00:06]} Qxd4 {[%emt 0:00:17]} 25. Qxd4 {[%emt 0:00:06]} Bxd4 {[%emt 0:00:05]} 26. Rad1 {[%emt 0:00:23]} 1/2-1/2

[Event "9th Amsterdam Science Park A 2019"]
[Site "Amsterdam"]
[Date "2019.07.09"]
[Round "4.4"]
[White "Arnaudov, G. Petar"]
[Black "Elgersma, Onno"]
[Result "1-0"]
[ECO "A06"]
[WhiteElo "2478"]
[BlackElo "2232"]
[Annotator "ChessBase"]
[PlyCount "85"]
[EventDate "2019.07.06"]
[EventType "swiss"]
[EventCountry "NED"]
[SourceTitle "playchess.com"]
[Source "ChessBase"]
[SourceQuality "1"]
[TimeControl "40/5400+30:1800+30"]

1. Nf3 {[%emt 0:02:28]} Nf6 {[%emt 0:00:00]} 2. c4 {[%emt 0:00:10]} e6 {[%emt 0:00:00]} 3. e3 {[%emt 0:00:13]} d5 {[%emt 0:01:03]} 4. b3 {[%emt 0:00:05]} c5 {[%emt 0:01:42]} 5. Bb2 {[%emt 0:00:54]} Nc6 {[%emt 0:00:16]} 6. cxd5 {[%emt 0:00:16]} exd5 {[%emt 0:00:26]} 7. Bb5 {[%emt 0:00:06]} Bd6 {[%emt 0:01:19]} 8. O-O {[%emt 0:00:07]} O-O {[%emt 0:00:50]} 9. d4 {[%emt 0:00:26]} cxd4 {[%emt 0:09:29]} 10. Nxd4 {[%emt 0:00:06]} a6 {[%emt 0:01:14]} 11. Be2 {[%emt 0:04:36]} Re8 {[%emt 0:06:23]} 12. Nd2 {[%emt 0:06:20]} Bd7 {[%emt 0:05:55]} 13. a3 {[%emt 0:06:34]} Ne5 {[%emt 0:04:33]} 14. N4f3 {[%emt 0:00:45]} Ng6 {[%emt 0:03:20]} 15. Ra2 {[%emt 0:07:24]} Bf8 {[%emt 0:12:05]} 16. b4 {[%emt 0:07:40]} Ne4 {[%emt 0:01:40]} 17. Ra1 {[%emt 0:15:09]} Rc8 {[%emt 0:05:14]} 18. Rc1 {[%emt 0:04:46]} Rxc1 {[%emt 0:01:15]} 19. Qxc1 {[%emt 0:00:05]} Ba4 {[%emt 0:01:19]} 20. Bd3 {[%emt 0:02:40]} Qd7 {[%emt 0:03:27]} 21. Qb1 {[%emt 0:00:57]} Qe7 {[%emt 0:11:16]} 22. Bd4 {[%emt 0:02:11]} Bc6 {[%emt 0:09:34]} 23. Rc1 {[%emt 0:01:47]} Qd7 {[%emt 0:01:38]} 24. Nb3 {[%emt 0:00:55]} Bd6 {[%emt 0:02:13]} 25. Qb2 {[%emt 0:03:51]} f6 {[%emt 0:02:02]} 26. Qc2 {[%emt 0:00:12]} Ba4 {[%emt 0:01:31]} 27. Qa2 {[%emt 0:01:09]} Kh8 {[%emt 0:00:49]} 28. Nbd2 {[%emt 0:00:40]} Bb8 {[%emt 0:01:04]} 29. Qb1 {[%emt 0:01:01]} Bc6 {[%emt 0:00:54]} 30. a4 {[%emt 0:01:38]} Qd6 {[%emt 0:02:26]} 31. g3 {[%emt 0:02:57]} Qe6 {[%emt 0:01:04]} 32. b5 {[%emt 0:03:13]} axb5 {[%emt 0:00:05]} 33. axb5 {[%emt 0:00:46]} Bd7 {[%emt 0:00:02]} 34. b6 {[%emt 0:00:31]} h5 {[%emt 0:02:46]} 35. Bf1 {[%emt 0:05:52]} h4 {[%emt 0:00:29]} 36. Bg2 {[%emt 0:00:22]} Bc6 {[%emt 0:05:25]} 37. Nb3 {[%emt 0:02:42]} Bd7 {[%emt 0:01:35]} 38. Nc5 {[%emt 0:00:48]} Nxc5 {[%emt 0:00:50]} 39. Qxg6 {[%emt 0:01:36]} Nb3 {[%emt 0:00:49]} 40. Rb1 {[%emt 0:02:10]} Nxd4 {[%emt 0:00:26]} 41. Qh5+ {[%emt 0:30:15]} Kg8 {[%emt 0:30:16]} 42. Nxd4 {[%emt 0:00:07]} Qe5 {[%emt 0:01:06]} 43. Bxd5+ {[%emt 0:00:12]} 1-0